Cogmind - Beta 17.1 @@@ ROGUE MODE // 2026.09.24 @ 14:24:33 Player: Figgis Result: Self-destructed Performance ------------- Evolutions (4) 2000 Regions Visited (9) 1800 Robots Destroyed (148) 740 Value Destroyed (4423) 4423 Prototype IDs (27) 540 Alien Tech Used (0) 0 Bonus (800) 800 TOTAL SCORE: 10303 Bonus ------- Registered with UFD 300 Met Optimus in HQ 500 Cogmind --------- Core Integrity 359/850 Matter 1/300 Energy 83/100 System Corruption 0% Temperature Cool (9) Movement Hovering (102) Ox1 Location -6/Factory Parts ------- > --- POWER (1) -------- (None) > --- PROPULSION (6) --- Improved Gravmag System Improved Gravmag System Improved Gravmag System > --- UTILITY (6) ------ High-capacity Storage Unit Terrain Scan Processor Experimental Targeting Computer Hacking Suite A0-MCA's Component Scanner > --- WEAPON (2) ------- Minigun > --- INVENTORY (20) --- Nuclear Core Light Fission Core Armored Treads Cesium-ion Thruster Advanced Heat Sink Gravity Neutralizer Active Sensor Suite Medium Armor Plating EM Shield System Shield Authchip [Propulsion] Authchip [Propulsion] System Restoration Module Heavy Assault Rifle Missile Launcher Chainsword Peak State ------------ > --- POWER ------------ Cooled Ion Engine > --- PROPULSION ------- Improved Gravmag System Improved Gravmag System Improved Gravmag System Improved Gravmag System Improved Gravmag System Improved Gravmag System > --- UTILITY ---------- High-capacity Storage Unit Advanced Terrain Scanner Experimental Targeting Computer EM Shield Hacking Suite A0-MCA's Component Scanner > --- WEAPON ----------- Assault Cannon Assault Cannon > --- INVENTORY -------- Nuclear Core Armored Treads Armored Treads Armored Treads Improved Heat Sink Gravity Neutralizer Active Sensor Suite Medium Armor Plating Hacking Suite System Shield Authchip [Propulsion] Authchip [Propulsion] System Restoration Module Heavy Assault Rifle Minigun Minigun Missile Launcher Chainsword [Rating: 76] Favorites ----------- Power Cooled Ion Engine Engine Cooled Ion Engine Power Core Light Fission Core Propulsion Armored Treads Treads Armored Treads Hover Unit Improved Gravmag System Utility High-capacity Storage Unit Device Improved Heat Sink Storage High-capacity Storage Unit Processor Experimental Targeting Computer Hackware Hacking Suite Protection Hardened Medium Armor Plating Weapon Assault Cannon Energy Gun Medium Laser Energy Cannon EM Pulse Cannon Ballistic Gun Minigun Ballistic Cannon Assault Cannon Launcher Missile Launcher Special Weapon Plasma Cutter Impact Weapon Heavy Flail Slashing Weapon Chainsword Build | -11 -10 -10 -9 -9 -8 -8 -8 -8 -6 ------- Run | Yrd Mat Min Mat Min Mat Sto Rec Scr Fac Slots Evolved 8 | . . . 2 . 2 . . . 4 Power . | . . . . . . . . . . Propulsion 4 | . . . 1 . 1 . . . 2 Utility 4 | . . . 1 . 1 . . . 2 Weapon . | . . . . . . . . . . Parts Attached 79 | 4 8 5 17 1 8 17 1 2 16 Power 10 | . 3 1 3 . 1 . . . 2 Engine 8 | . 3 1 3 . 1 . . . . Core 2 | . . . . . . . . . 2 Reactor . | . . . . . . . . . . Propulsion 27 | 2 . 1 4 . 3 7 1 . 9 Treads 20 | 2 . 1 4 . 3 7 1 . 2 Leg . | . . . . . . . . . . Wheel . | . . . . . . . . . . Hover 7 | . . . . . . . . . 7 Flight . | . . . . . . . . . . Utility 19 | . 2 2 3 1 3 2 . 2 4 Device 8 | . . 2 . 1 1 2 . . 2 Storage 3 | . 2 . 1 . . . . . . Processor 3 | . . . . . . . . 2 1 Hackware 2 | . . . . . 1 . . . 1 Protection 3 | . . . 2 . 1 . . . . Artifact . | . . . . . . . . . . Weapon 23 | 2 3 1 7 . 1 8 . . 1 Energy Gun 2 | 2 . . . . . . . . . Energy Cannon 1 | . . 1 . . . . . . . Ballistic Gun 12 | . 3 . 6 . 1 1 . . 1 Ballistic Cannon 2 | . . . . . . 2 . . . Launcher 2 | . . . 1 . . 1 . . . Special Weapon 2 | . . . . . . 2 . . . Impact Weapon 1 | . . . . . . 1 . . . Slashing Weapon 1 | . . . . . . 1 . . . Piercing Weapon . | . . . . . . . . . . Special Melee Weapon . | . . . . . . . . . . Unidentified Prototypes 3 | . . . 2 . . . . 1 . Parts Lost 24 | . 1 2 1 . 4 6 . . 10 Power 4 | . 1 1 . . . 1 . . 1 Propulsion 8 | . . . . . 1 3 . . 4 Utility 5 | . . 1 1 . 1 . . . 2 Weapon 7 | . . . . . 2 2 . . 3 Highest Loss Streak 8 | . 1 1 1 . 1 4 . . 8 To Critical Strikes . | . . . . . . . . . . Average Backups 16 | 2 5 8 16 20 18 17 20 19 17 Power 1 | 1 3 2 2 2 2 1 2 1 1 Propulsion 3 | . . 2 4 6 5 4 3 2 2 Utility 5 | . . 2 3 4 3 5 8 9 9 Weapon 5 | 1 1 1 6 8 6 6 5 4 4 Tool/Special . | . . . . . . . . . . Unused Backups 23 | . . 1 4 1 1 2 . 3 11 Power 5 | . . 1 2 . . . . 1 1 Propulsion 4 | . . . 1 1 . . . 1 1 Utility 9 | . . . . . . 1 . . 8 Weapon 5 | . . . 1 . 1 1 . 1 1 Tool/Special . | . . . . . . . . . . Average Slot Usage (%) 96 | . 83 90 99 100 95 98 100 100 89 Engine 9 | . 13 13 11 11 9 8 9 9 2 Treads 31 | . 27 28 32 33 34 35 36 36 9 Hover 2 | . . . . . . . . . 24 Device 9 | . . 5 11 11 9 14 18 9 5 Storage 10 | . 13 14 11 11 9 9 9 9 6 Processor 2 | . . . . . . . . 8 13 Hackware 5 | . . . . . 6 9 9 9 8 Protection 3 | . . . 10 11 8 3 . . . Ballistic Gun 10 | . 16 22 21 22 18 5 . . . Ballistic Cannon 7 | . . . . . . 8 17 18 12 Peak Build Rating 76 | 4 8 12 29 29 35 34 35 47 76 Average Rating 31 | 2 5 9 26 29 32 32 34 40 64 On Entrance 22 | . 4 7 12 29 29 33 32 35 47 Avg Prop Armor Cover (%) 25 | 26 29 . . . 7 5 . . . Naked Turns . | . . . . . . . . . . Heaviest Build 67 | 3 19 24 63 63 63 67 62 62 60 Greatest Support 123 | 3 40 40 66 66 88 84 83 83 123 Greatest Overweight (x) 1 | . . . 1 . . 1 . . 1 Average Overweight (x) . | . . . . . . . . . . Largest Inventory Capacity 20 | 5 10 10 20 20 20 20 20 20 20 Average Capacity 17 | 5 7 10 18 20 20 20 20 20 20 Most Carried 20 | 5 8 10 20 20 20 20 20 20 20 Average Carried 16 | 3 5 8 16 20 18 17 20 19 19 Final Capacity 20 | 5 10 10 20 20 20 20 20 20 20 Final Carried 20 | 4 8 10 20 20 19 20 20 20 18 Class Distribution -------------------- 95% | Mutant 3% | Hacker-Mutant Dominant Class ---------------- Mutant | -10/Materials Mutant | -10/Mines Mutant | -9/Materials Mutant | -9/Mines Mutant | -8/Materials Mutant | -8/Storage Mutant | -8/Recycling Mutant | -8/Scraptown Mutant | -6/Factory Resources | -11 -10 -10 -9 -9 -8 -8 -8 -8 -6 ----------- Run | Yrd Mat Min Mat Min Mat Sto Rec Scr Fac Matter Collected 3890 | 240 229 194 764 146 655 1081 170 10 401 Remotely . | . . . . . . . . . . Salvage Created 5332 | . 454 231 1193 274 1198 1450 175 . 357 Parts 310 | . 24 12 82 14 72 75 6 . 25 Haulers Intercepted 15 | . 2 . 5 . 4 4 . . . Recyclers Shooed 5 | . 1 . 1 . 1 2 . . . Parts Field Recycled . | . . . . . . . . . . Retrieved Matter . | . . . . . . . . . . Parts Self-Destructed . | . . . . . . . . . . Prevented . | . . . . . . . . . . Parts Restored . | . . . . . . . . . . Kills | -11 -10 -10 -9 -9 -8 -8 -8 -8 -6 ------- Run | Yrd Mat Min Mat Min Mat Sto Rec Scr Fac Combat Hostiles Destroyed 116 | . 8 6 27 10 22 27 5 . 11 Guns 88 | . 7 6 25 10 22 18 . . . Cannons 25 | . . . 1 . . 8 5 . 11 AOE 2 | . . . 1 . . 1 . . . Classes Destroyed 11 | . 5 . 3 . . 2 . . 1 Worker 5 | . 3 . . . . 1 . . 1 Hauler 15 | . 2 . 5 . 4 4 . . . Recycler 2 | . 1 . . . . 1 . . . Operator 1 | . . . . . . 1 . . . Watcher 9 | . . . 5 . . 1 . . 3 Swarmer 32 | . 3 2 10 6 3 4 . . 4 Grunt 47 | . 5 4 11 3 10 10 1 . 3 Brawler 3 | . . . 1 1 . . . . 1 Sentry 29 | . . . 5 . 9 11 4 . . Hunter 3 | . . . . . . 2 . . 1 Programmer 2 | . . . . . . . . . 2 Best Kill Streak 8 | . 8 2 4 3 8 6 3 . 5 Combat Bots Only 8 | . 7 2 4 3 8 6 3 . 4 Max Kills in Single Turn 2 | . 2 1 1 1 1 1 1 . 2 Gunslinging . | . . . . . . . . . . Exploded 1 | . . . 1 . . 1 . . . Melee . | . . . . . . . . . . Uniques/NPCs Destroyed . | . . . . . . . . . . Combat | -11 -10 -10 -9 -9 -8 -8 -8 -8 -6 -------- Run | Yrd Mat Min Mat Min Mat Sto Rec Scr Fac Hostile Shots Fired 653 | . 40 64 115 33 134 125 19 . 123 Missed 191 | . 6 11 42 15 36 30 7 . 44 Hits 462 | . 34 53 73 18 98 95 12 . 79 Melee 3 | . . . 1 . . . . . 2 Projectile 459 | . 34 53 72 18 98 95 12 . 77 AOE 3 | . . . . . . . . . 3 Critical Strikes 19 | . 1 1 2 . 8 4 1 . 2 Damage Taken 6632 | . 392 607 847 163 1387 1510 177 . 1549 Core 1161 | . 94 148 73 18 115 178 44 . 491 Absorbed by Shields . | . . . . . . . . . . Ignored by Resistances 12 | . . . . . . . . . 12 Regen/Repaired (Parts) 1248 | . 101 . 170 . 313 105 . 532 27 Core Remaining (%) 54 | 100 . 3 . 77 . . . 38 . Volleys Fired 423 | . 42 26 80 16 76 109 14 . 60 Largest 2 | . 2 2 2 2 2 2 2 . 2 Hottest 90 | . 90 83 86 50 50 74 74 . 74 Shots Fired 828 | . 84 51 160 32 151 212 28 . 110 Gun 588 | . 84 42 155 32 151 114 . . 10 Cannon 212 | . . 9 3 . . 72 28 . 100 Launcher 8 | . . . 2 . . 6 . . . Special 20 | . . . . . . 20 . . . Kinetic 753 | . 49 42 155 32 151 186 28 . 110 Thermal 55 | . 35 . . . . 20 . . . Explosive 8 | . . . 2 . . 6 . . . Electromagnetic 12 | . . 9 3 . . . . . . Robot Hit Streak 19 | . 8 10 11 8 12 19 10 . 8 Robot Miss Streak 6 | . 4 2 2 5 6 3 2 . 3 Penetration Max . | . . . . . . . . . . Secondary Targets 13 | . 1 . 1 2 5 4 . . . Max Gunslinging Chain 1 | . 1 . 1 1 1 1 . . . Shots Hit Robots 511 | . 51 38 102 19 100 111 17 . 73 Core Hits 218 | . 21 11 46 11 41 53 5 . 30 Critical Kills . | . . . . . . . . . . Critical Parts Destroyed 1 | . . . . . . 1 . . . Critical Strikes 8 | . 3 . . . . 1 2 . 2 Burn 3 | . 3 . . . . . . . . Destroy 1 | . . . . . . 1 . . . Blast 4 | . . . . . . . 2 . 2 Melee Attacks 9 | . . . . . . 9 . . . Impact 2 | . . . . . . 2 . . . Slashing 7 | . . . . . . 7 . . . Piercing . | . . . . . . . . . . Sneak Attacks 2 | . . . . . . 2 . . . Combat Hostiles . | . . . . . . . . . . Follow-up Attacks . | . . . . . . . . . . Damage Inflicted 9818 | . 699 645 1917 333 1800 2202 425 . 1797 Guns 6445 | . 689 434 1661 333 1800 1415 . . 113 Cannons 2946 | . . 155 66 . . 616 425 . 1684 Explosions 276 | . . 56 190 . . 30 . . . Melee 134 | . . . . . . 134 . . . Ramming 17 | . 10 . . . . 7 . . . Kinetic 8859 | . 378 434 1661 333 1800 2031 425 . 1797 Thermal 367 | . 311 56 . . . . . . . Explosive 220 | . . . 190 . . 30 . . . Electromagnetic 221 | . . 155 66 . . . . . . Impact . | . . . . . . . . . . Slashing 134 | . . . . . . 134 . . . Piercing . | . . . . . . . . . . Highest Corruption . | . . . . . . . . . . Average Corruption . | . . . . . . . . . . Corruption Purged . | . . . . . . . . . . Corruption Blocked . | . . . . . . . . . . Overload Shots . | . . . . . . . . . . Overflow Damage 117 | . . 9 . . . 84 . . 24 Projectiles 33 | . . 9 . . . . . . 24 Explosions 30 | . . . . . . 30 . . . Melee 54 | . . . . . . 54 . . . Knockbacks 20 | . . . . . . 3 2 . 15 Impact . | . . . . . . . . . . Kinetic 18 | . . . . . . 2 2 . 14 Secondary 2 | . . . . . . 1 . . 1 Self-Inflicted Damage 79 | . . . . . . 79 . . . Shots 1 | . . . . . . 1 . . . Rammed . | . . . . . . . . . . Targets Rammed 3 | . 2 . . . . 1 . . . Kicked . | . . . . . . . . . . Crushed 3 | . 2 . . . . 1 . . . Highest Temperature 145 | . 145 51 18 6 19 20 11 . 48 Average Temperature 29 | . 54 13 9 6 13 8 11 . 14 Received Heat Transfer 2547 | . 192 300 333 15 630 630 81 . 366 Siege Activations . | . . . . . . . . . . Martial Activations . | . . . . . . . . . . Shielding Activations . | . . . . . . . . . . Robots Disrupted . | . . . . . . . . . . Combat Hostiles . | . . . . . . . . . . Robots Corrupted . | . . . . . . . . . . Combat Hostiles . | . . . . . . . . . . Parts Fried 1 | . . 1 . . . . . . . Impact Corruptions . | . . . . . . . . . . Robots Melted 1 | . 1 . . . . . . . . Combat Hostiles 1 | . 1 . . . . . . . . Parts Melted 2 | . 2 . . . . . . . . Heat Transferred 1223 | . 1123 100 . . . . . . . Parts Sabotaged . | . . . . . . . . . . Parts Stolen . | . . . . . . . . . . Parts Stripped . | . . . . . . . . . . Power Chain Reactions 1 | . . 1 . . . . . . . Alert | -11 -10 -10 -9 -9 -8 -8 -8 -8 -6 ------- Run | Yrd Mat Min Mat Min Mat Sto Rec Scr Fac Maximum Alert Level 1 | . . . 1 . 1 1 1 . . Low Security (%) 83 | 100 100 100 78 100 95 37 98 . 100 Level 1 16 | . . . 21 . 4 62 1 . . Level 2 . | . . . . . . . . . . Level 3 . | . . . . . . . . . . Level 4 . | . . . . . . . . . . Level 5 . | . . . . . . . . . . High Security . | . . . . . . . . . . Max Security . | . . . . . . . . . . Peak Influence 348 | . 137 79 348 139 215 329 202 . 186 Initial 129 | . . . 23 129 . 74 118 . . Average 102 | . 30 10 125 65 148 220 64 . 38 Influence Increases 3745 | . 242 183 789 230 698 882 325 . 396 Destroy 0b10 Robot/C 2320 | . 160 120 540 200 440 540 100 . 220 Destroy 0b10 Robot/NC 160 | . 30 . 50 . 20 40 . . 20 Destroy Leader 608 | . 34 30 140 30 138 170 . . 66 Allied During Kill 1 | . . . . . 1 . . . . Successful Hack 106 | . 15 . 28 . 20 6 10 . 27 Select Force Hacks 210 | . . . . . . . 210 . . Disable Machine 150 | . . . . . 60 90 . . . Destroy Structure 70 | . 3 3 16 . 4 36 5 . 3 Lose Combat Pursuer 120 | . . 30 15 . 15 . . . 60 Influence Decreases 3630 | . 242 122 517 563 520 756 629 . 281 Entered New Map 532 | . . . 38 204 . 104 186 . . Time Decay 2807 | . 232 112 473 319 455 592 443 . 181 Lost Part 226 | . 10 10 6 . 40 60 . . 100 Lost Ally 65 | . . . . 40 25 . . . . Squads Dispatched 19 | . 1 1 3 . 6 4 . . 4 Investigation 7 | . . 1 1 . 1 3 . . 1 Extermination 2 | . . . . . . . . . 2 Reinforcement 9 | . 1 . 2 . 4 1 . . 1 Assault . | . . . . . . . . . . Garrison 1 | . . . . . 1 . . . . Intercept . | . . . . . . . . . . Searches Triggered . | . . . . . . . . . . Construction Impeded 1 | . . . . . . . . . 1 Haulers Reinforced . | . . . . . . . . . . Active Scanning Responses . | . . . . . . . . . . Cargo Convoy Interrupts . | . . . . . . . . . . Stealth | -11 -10 -10 -9 -9 -8 -8 -8 -8 -6 --------- Run | Yrd Mat Min Mat Min Mat Sto Rec Scr Fac Distress Signals 9 | . . . 1 . 4 1 . . 3 Communications Jammed . | . . . . . . . . . . Distress Signals . | . . . . . . . . . . Times Spotted 158 | . 15 8 36 11 24 32 5 . 27 Peak Tracking Total 8 | . 5 3 4 3 7 5 2 . 8 Tactical Retreats 6 | . . 1 1 . 1 . . . 3 Traps | -11 -10 -10 -9 -9 -8 -8 -8 -8 -6 ------- Run | Yrd Mat Min Mat Min Mat Sto Rec Scr Fac Traps Triggered 11 | . 2 . 1 . 2 4 . . 2 Indirectly . | . . . . . . . . . . Trap Hack Attempts . | . . . . . . . . . . Triggered . | . . . . . . . . . . Disarmed . | . . . . . . . . . . Reprogrammed . | . . . . . . . . . . Reused . | . . . . . . . . . . Traps Extracted . | . . . . . . . . . . Installed . | . . . . . . . . . . Triggered . | . . . . . . . . . . Machines | -11 -10 -10 -9 -9 -8 -8 -8 -8 -6 ---------- Run | Yrd Mat Min Mat Min Mat Sto Rec Scr Fac Machines Disabled 10 | . . . . . 4 6 . . . Max in Single Turn 2 | . . . . . 1 2 . . . Garrison Access 2 | . . . . . 1 . . . 1 Machines Repaired . | . . . . . . . . . . Machines Dismantled 2 | . . . . . . 2 . . . Machines Sabotaged . | . . . . . . . . . . Overloaded Fab Kills . | . . . . . . . . . . Hacking | -11 -10 -10 -9 -9 -8 -8 -8 -8 -6 --------- Run | Yrd Mat Min Mat Min Mat Sto Rec Scr Fac Machines Accessed 64 | . 8 1 10 . 8 11 15 1 10 Terminals 36 | . 7 . 7 . 4 8 6 . 4 Fabricators 1 | . . . . . . . . . 1 Repair Stations 7 | . 1 . 1 . 2 1 . . 2 Recycling Units 10 | . . . . . . 2 7 . 1 Scanalyzers 4 | . . . 2 . 1 . . . 1 Garrison Access 2 | . . . . . 1 . . . 1 Total Hacks 168 | . 19 1 24 . 22 28 49 1 24 Successful 96 | . 5 1 17 . 10 14 36 1 12 Failed 71 | . 14 . 7 . 11 14 13 . 12 Catastrophic 9 | . 2 . 1 . 2 2 1 . 1 Database Lockouts 1 | . . . . . 1 . . . . Manual 43 | . 16 . 3 . 4 6 11 . 3 Terminals 86 | . 16 . 15 . 8 23 13 . 11 Fabricators 1 | . . . . . . . . . 1 Repair Stations 20 | . 3 . 4 . 7 2 . . 4 Recycling Units 16 | . . . . . . 3 11 . 2 Scanalyzers 11 | . . . 5 . 2 . . . 4 Garrison Access 7 | . . . . . 5 . . . 2 Terminal Hacks 59 | . 3 1 9 . 4 9 29 1 3 Record 24 | . . . . . . . 24 . . Robot Analysis 6 | . 2 . 1 . 1 2 . . . Prototype ID Bank 2 | . . . 1 . . 1 . . . Open Door 4 | . . 1 . . . 3 . . . Branch Access Points 3 | . . . 1 . 1 1 . . . Emergency Access Points 1 | . . . 1 . . . . . . Terminal Index 1 | . . . 1 . . . . . . Locate Traps 5 | . 1 . 1 . 1 . . . 2 Dispatch Records 1 | . . . . . . . 1 . . Patrol Status 1 | . . . . . . . 1 . . Hauler Manifests 3 | . . . 1 . . 2 . . . Registered Components 2 | . . . . . 1 . . . 1 Zone Layout 4 | . . . 2 . . . 2 . . Proto ID Catalog 1 | . . . . . . . . 1 . Release Object 1 | . . . . . . . 1 . . Fabricator Hacks 1 | . . . . . . . . . 1 Network Status 1 | . . . . . . . . . 1 Repair Station Hacks 16 | . 2 . 4 . 4 2 . . 4 Scan Component 8 | . 1 . 2 . 2 1 . . 2 Repair 8 | . 1 . 2 . 2 1 . . 2 Recycling Unit Hacks 3 | . . . . . . 3 . . . Report Inventory 2 | . . . . . . 2 . . . Retrieve Components 1 | . . . . . . 1 . . . Scanalyzer 7 | . . . 4 . 1 . . . 2 Retrieve Study 7 | . . . 4 . 1 . . . 2 Garrison Access Hacks 2 | . . . . . 1 . . . 1 Seal Access 2 | . . . . . 1 . . . 1 Unauthorized Hacks 8 | . . . . . . . 7 . 1 Terminals . | . . . . . . . . . . Fabricators . | . . . . . . . . . . Repair Stations . | . . . . . . . . . . Recycling Units 8 | . . . . . . . 7 . 1 Tunnel 7 | . . . . . . . 7 . . Fedlink 1 | . . . . . . . . . 1 Scanalyzers . | . . . . . . . . . . Garrison Access . | . . . . . . . . . . Data Cores Recovered 1 | . . . . . . 1 . . . Used 1 | . . . . . . 1 . . . Hacking Detections 44 | . 8 . 8 . 6 8 5 . 9 Full Trace Events 2 | . . . . . . 2 . . . Feedback Events . | . . . . . . . . . . Feedback Blocked . | . . . . . . . . . . Robot Schematics Acquired . | . . . . . . . . . . Robots Built . | . . . . . . . . . . Authchips . | . . . . . . . . . . Time . | . . . . . . . . . . Total Robot Build Rating . | . . . . . . . . . . Part Schematics Acquired . | . . . . . . . . . . Parts Built . | . . . . . . . . . . Authchips . | . . . . . . . . . . Time . | . . . . . . . . . . Total Part Build Rating . | . . . . . . . . . . Part Studies Acquired 6 | . . . 3 . 1 . . . 2 Parts Repaired 8 | . 1 . 2 . 2 1 . . 2 Time 316 | . 26 . 76 . 76 38 . . 100 Parts Recycled . | . . . . . . . . . . Recycled Matter . | . . . . . . . . . . Retrieved Matter . | . . . . . . . . . . Retrieved Components 9 | . . . . . . 9 . . . Parts Scanalyzed . | . . . . . . . . . . Part Schematics Acquired . | . . . . . . . . . . Parts Damaged . | . . . . . . . . . . Bothacking | -11 -10 -10 -9 -9 -8 -8 -8 -8 -6 ------------ Run | Yrd Mat Min Mat Min Mat Sto Rec Scr Fac Used RIF Installer . | . . . . . . . . . . Robots Hacked . | . . . . . . . . . . Non-combat . | . . . . . . . . . . Combat . | . . . . . . . . . . Robot Hacks Applied . | . . . . . . . . . . Relay Couplers Released . | . . . . . . . . . . Fabnet Peak Effective % . | . . . . . . . . . . Robots Rewired . | . . . . . . . . . . Allies Hacked . | . . . . . . . . . . Hacks Repelled . | . . . . . . . . . . Allies | -11 -10 -10 -9 -9 -8 -8 -8 -8 -6 -------- Run | Yrd Mat Min Mat Min Mat Sto Rec Scr Fac Total Allies 5 | . . . . 5 . . . . . Largest Group 3 | . . . . 3 3 . . . . Highest-Rated Group 45 | . . . . 45 40 . . . . Highest-Rated Ally 31 | . . . . 31 16 . . . . Initial UFD Resources 23 | . . . . . . . . . 23 Total Orders . | . . . . . . . . . . Ally Attacks 17 | . . . . 2 15 . . . . Total Damage 233 | . . . . 42 191 . . . . Kills . | . . . . . . . . . . Allies Corrupted . | . . . . . . . . . . Allies Melted . | . . . . . . . . . . Intel | -11 -10 -10 -9 -9 -8 -8 -8 -8 -6 ------- Run | Yrd Mat Min Mat Min Mat Sto Rec Scr Fac Active Infowar (turns) 853 | . . . . . . . . . 853 Terrain 853 | . . . . . . . . . 853 Robot Analysis Total 6 | . 2 . 1 . 1 2 . . . Derelict Logs Recovered 4 | . . 1 . 3 . . . . . Drone Launches . | . . . . . . . . . . Drone Recoveries . | . . . . . . . . . . Exploration | -11 -10 -10 -9 -9 -8 -8 -8 -8 -6 ------------- Run | Yrd Mat Min Mat Min Mat Sto Rec Scr Fac Turns Passed 12074 | 29 1005 1104 1842 774 1254 1868 1298 1863 1037 Spaces Moved 6850 | 35 543 630 948 493 640 786 742 1110 923 Core 107 | 35 72 . . . . . . . . Treads 6020 | . 471 630 948 493 640 786 742 1110 200 Legs . | . . . . . . . . . . Wheels . | . . . . . . . . . . Hover 723 | . . . . . . . . . 723 Flight . | . . . . . . . . . . Fastest Speed 40 | 50 50 160 145 145 145 155 167 167 40 Average Speed 144 | 50 145 160 146 145 146 166 167 167 69 Slowest Speed 250 | 50 160 160 240 145 155 250 167 167 167 Overloaded Moves . | . . . . . . . . . . Propulsion Burnouts . | . . . . . . . . . . Robots Hopped . | . . . . . . . . . . Potential Cave-ins . | . . . . . . . . . . Cave-ins Triggered . | . . . . . . . . . . Exploration Rate (%) 69 | 3 72 94 79 98 67 76 98 85 27 Regions Visited 9 Branch Regions 5 Pre-discovered Areas 8 | . . . . 1 . . 7 . . Known Exits Taken 4 | . . . 1 1 1 1 . . . Unknown Exits Taken 5 | 1 1 1 . . . . 1 1 . Scrap Searched 11 | . . 3 . 2 . . . 6 . Spaces Dug . | . . . . . . . . . . Terrain Destroyed 60 | . . 3 12 . . 38 5 . 2 Melee . | . . . . . . . . . . Projectile 10 | . . . . . . 3 5 . 2 AOE 50 | . . 3 12 . . 35 . . . Terrain Rammed . | . . . . . . . . . . Walls Destroyed . | . . . . . . . . . . Machines Disabled . | . . . . . . . . . . Actions | -11 -10 -10 -9 -9 -8 -8 -8 -8 -6 --------- Run | Yrd Mat Min Mat Min Mat Sto Rec Scr Fac Total 8210 | 46 672 674 1265 529 839 1078 773 1123 1211 Wait 654 | . 57 8 177 17 96 113 11 . 175 Move 6841 | 34 542 629 947 492 639 785 741 1109 923 Hop . | . . . . . . . . . . Pick Up 92 | 8 13 5 24 1 11 13 2 5 10 Fast Attach 16 | . 2 1 3 . 1 2 . . 7 Attach 36 | 4 6 2 3 . 7 7 . . 7 Detach 3 | . . . . . . . . . 3 Swap 46 | . 4 2 13 1 3 12 3 2 6 Drop 57 | . 4 1 18 2 6 10 2 7 7 Fire 423 | . 42 26 80 16 76 109 14 . 60 Melee 9 | . . . . . . 9 . . . Ram . | . . . . . . . . . . Kick . | . . . . . . . . . . Crush 3 | . 2 . . . . 1 . . . Escape Stasis 13 | . . . . . . . . . 13 Rewire . | . . . . . . . . . . Trap . | . . . . . . . . . . Miscellaneous 17 | . . . . . . 17 . . . Route ------- -11/Scrapyard -10/Materials (discovered 4 exits: *Mat x2 / *Min / [*Sub]) -10/Mines (discovered 3 exits: *Mat x2 / [*Exi]) -9/Materials (discovered 4 exits: *Mat x3 / *Min) -9/Mines (discovered 2 exits: *Mat x2) -8/Materials (discovered 3 exits: [*Fac x2] / *Sto) -8/Storage -8/Recycling (discovered 2 exits: *Fac / *Scr) -8/Scraptown (discovered 2 exits: *Fac x2) -6/Factory (discovered 1 exit: [*Fac]) History --------- Turn | Location | Event 11 | -11/Scrapyard | Discovered new exit (range 16) 30 | -11/Scrapyard | Entered Materials 267 | -10/Materials | Destroyed 7 combat bots 272 | -10/Materials | Discovered new exit (range 8) 312 | -10/Materials | Build established: Mutant 347 | -10/Materials | Repaired Lgt. Treads 355 | -10/Materials | Discovered new exit (range 16) 578 | -10/Materials | Discovered new exit (range 12) 819 | -10/Materials | Discovered new exit (range 16) 1035 | -10/Materials | Entered Mines 1060 | -10/Mines | Core integrity fell below 50% 1090 | -10/Mines | Met a Derelict bent on vengeance 1314 | -10/Mines | Discovered new exit (range 16) 1654 | -10/Mines | Met a Derelict shopkeep closing up shop 1908 | -10/Mines | Found a Scrap Suit stashed away for nefarious purposes 1910 | -10/Mines | Discovered new exit (range 11) 1948 | -10/Mines | Deemed a non-threat by the Exiles lab entrance 2061 | -10/Mines | Discovered new exit (range 6) 2065 | -10/Mines | Core integrity fell below 20% 2139 | -10/Mines | Entered Materials 2139 | -9/Materials | Evolved 2 slots: Propulsion x1, Utility x1 2140 | -9/Materials | Identified exit to Mines 2849 | -9/Materials | Discovered new exit (range 15) 3190 | -9/Materials | Discovered new exit (range 15) 3484 | -9/Materials | Repaired Adv. Treads 3524 | -9/Materials | Repaired Adv. Treads 3804 | -9/Materials | Discovered new exit (range 5) 3981 | -9/Materials | Entered Mines 4300 | -9/Mines | Identified exit to Materials 4376 | -9/Mines | Learned Materials terminal intel 4413 | -9/Mines | Discovered exit to Materials (range 15) 4547 | -9/Mines | Assisted by bots powering up and referring to "LRC-V3" 4561 | -9/Mines | Learned location of Storage (-8) 4606 | -9/Mines | Found a hidden stash of uninstalled traps 4755 | -9/Mines | Entered Materials 4755 | -8/Materials | Accompanied by 3 allies 4755 | -8/Materials | Evolved 2 slots: Propulsion x1, Utility x1 4756 | -8/Materials | Loaded intel: 12 terminal locations 4799 | -8/Materials | Repaired Adv. Treads 4819 | -8/Materials | Garrison activated, responded to threat 4840 | -8/Materials | Repaired Hrd. Medium Armor Plating 4858 | -8/Materials | Lost 3 allies 4894 | -8/Materials | Destroyed 8 combat bots 5282 | -8/Materials | Discovered new exit (range 4) 5346 | -8/Materials | Identified exit to Storage 5676 | -8/Materials | Central database locked down 5830 | -8/Materials | Met 7R-MNS 5946 | -8/Materials | Discovered new exit (range 7) 6009 | -8/Materials | Entered Storage 6208 | -8/Storage | Lost 4 parts (1p1n2w) 6232 | -8/Storage | Identified exit to Recycling 6493 | -8/Storage | Core integrity fell below 50% 7162 | -8/Storage | Repaired Arm. Treads 7700 | -8/Storage | Found Prototype Processor 7877 | -8/Storage | Entered Recycling 8004 | -8/Recycling | Scanned before Scraplab entrance 8511 | -8/Recycling | Discovered new exit (range 11) 9147 | -8/Recycling | Entered Scraplab 9160 | -8/Recycling | Discovered new exit (range 3) 9175 | -8/Recycling | Entered Scraptown 9581 | -8/Scraptown | Discovered new exit (range 13) 9660 | -8/Scraptown | Visited CR-KLE's Repair Center 9671 | -8/Scraptown | CR-KLE repaired 6 parts 9718 | -8/Scraptown | Visited Cyclists 9738 | -8/Scraptown | Visited IN-MT5's Study 9795 | -8/Scraptown | Identified Exp. Targeting Computer 9992 | -8/Scraptown | Visited Assassins FH 10027 | -8/Scraptown | Visited Cave Peace 10129 | -8/Scraptown | Visited Science Testing Area 10167 | -8/Scraptown | Visited SPCMW 10199 | -8/Scraptown | Visited UFD Registry 10199 | -8/Scraptown | Registered with UFD as "Nanobot" 10234 | -8/Scraptown | Visited Junk Cannon Lab 10281 | -8/Scraptown | Visited Botcube Research 10426 | -8/Scraptown | Visited A0-MCA Data Center 10436 | -8/Scraptown | Given an A rating by A0-MCA 10440 | -8/Scraptown | Found A0-MCA's Component Scanner 10596 | -8/Scraptown | Visited Scrapoid Pod Storage 10625 | -8/Scraptown | Visited Infowarlord's Domain 10636 | -8/Scraptown | Found Active Sensor Suite 10659 | -8/Scraptown | Visited Science Guys 10742 | -8/Scraptown | Visited Research Penetration Think Tank 10793 | -8/Scraptown | Visited LU-1G1's Boring Crew 10859 | -8/Scraptown | Visited Curators Association 10953 | -8/Scraptown | Met Optimus 10953 | -8/Scraptown | Accepted into 0bPrime 11033 | -8/Scraptown | Discovered new exit (range 3) 11038 | -8/Scraptown | Entered Factory 11038 | -6/Factory | Evolved 4 slots: Propulsion x2, Utility x2 11245 | -6/Factory | Discovered new exit (range 10) 11556 | -6/Factory | Repaired EM Shield 11629 | -6/Factory | Repaired Imp. Gravmag System 11805 | -6/Factory | Build established: Hacker-Mutant 11974 | -6/Factory | Loaded intel: 8 recycling unit locations 12010 | -6/Factory | Spotted B-75 Beast 12067 | -6/Factory | Core integrity fell below 50% 12075 | -6/Factory | Self-destructed Last Messages --------------- 12066_ G-50 Soldier destroyed. 12066_ Minigun destroyed. 12066_ U-05 Engineer lays Concrete. 12067_ K-01 Serf collects debris. 12067_ U-05 Engineer lays Concrete. 12070_ K-01 Serf collects debris. 12070_ U-05 Engineer lays Concrete. 12070_ ALERT: Construction progress impeded, dispatching reinforcements to local area. 12070_ U-05 Engineer lays Concrete. 12071_ U-05 Engineer builds a Wall. 12071_ U-05 Engineer lays Concrete. 12072_ Critical hit (Burn: +37). 12072_ U-05 Engineer lays Concrete. 12073_ U-05 Engineer builds a Wall. 12073_ U-05 Engineer lays Concrete. 12073_ Destroyed Lgt. Angular Momentum Engine. 12074_ K-01 Serf collects debris. 12075_ U-05 Engineer lays Concrete. 12075_ U-05 Engineer builds a Wall. Map ----- +----------------------------------------------------+ | ?????????????????????????????????????????????????? | | ????????? ????????????? ????????????????????????? | | ?????????????????????????????????????????????????? | | ??"" ????????????? ??????????????????????????????? | | ?""" ""? ??? ?????? ????????????????????????????? | | """ """ ??????? ??????????????????????????? | | #???#???? #????????????????????????? | | """ """ #??? ???? #????????????????????????? | | """ """ #???????? #????????????????????????? | | """ """ #???????? #????????????????????????? | | +???????? #????????????????????????? | | ] #???????? #????????????????????????? | | #??? ? ?# #?"""" ????????????????? | | ##### #???#?#?# ##"""" #??????????????? | | ### ######### ## u #?#????????????? | | ### #; ##?????????????? | | ### ;; ;;;###???????????? | | + ; #???????????? | | ### ; #???????????? | | ##### ; +???????????? | | ?######+###########R #???????????? | | ?# ##?# [ #???????????? | | ## #?##T #???????????? | | ## """"""" #??## = ! #???????????? | | ?# """"""" #???#w #?#?????????? | | ?# """"""" #?#?# ;@ "" #???????????? | | ## """"""" ##?## ; F""?##??????????? | | ?# ##?## %u ; [ """ #?? ????????? | | ?# """"""" ##?## u g !##??????????? | | ?#? """"""" ##### g#####;#+######?#?????????? | | ##??""""""" # u %u % ???????????? | | #? """"""" !# %% % ??????????? | | #?? ? #""" % """ """ ???????????? | | !#??#?#########"Y """ "?"????????????? | | ##### #""" """ ""? ???????????? | | ###?# """ # ?????????????? | | ##### """ # R """ ""?? ?????????? | | ###?# """ # "% """ ???????????????? | | #??## # BB """ ??? ???????????? | | #???# """ # %%% %"" ? ?? ?????????? | | ##?## """ + ??????????????? | | #?### """ # """ ??????????????? | | #?#?# # """ #####"" ???#??????????? | | ############### """ #????"???"#???????????? | | ##??#?"???????????????? | | #?##????#?????????????? | | #???##????????????????? | | " #????? ???????????????? | | # ?? ? ?????????????? | | ############### " #???????? ????????????? | +----------------------------------------------------+ Best States ------------- Heat Dissipation 45 Energy Generation 18 Energy Capacity 280 Matter Stores 300 Matter Capacity 300 Sight Range 16 Terrain Scan Range 20 Terrain Scan Density 85 Armor Coverage 225 Resistance: EM 25 Evasion (%) 57 Targeting Accuracy 12 Recoil Reduction 6 Particle Charging 15 Offensive Hacking 20 Authchip Count 2 Item Schematics ----------------- None Robot Schematics ------------------ None Fabricated ------------ Nothing Repaired ---------- Lgt. Treads | 27% | -10/Materials Adv. Treads | 41% | -9/Materials Adv. Treads | 58% | -9/Materials Adv. Treads | 17% | -8/Materials Hrd. Medium Armor Plating | 27% | -8/Materials Arm. Treads | 65% | -8/Storage EM Shield | 40% | -6/Factory Imp. Gravmag System | 78% | -6/Factory Studied --------- Hvy. Assault Rifle | -9/Materials | Hacked Lgt. Treads | -9/Materials | Hacked Imp. Ion Engine | -9/Materials | Hacked Adv. Treads | -8/Materials | Hacked Imp. Gravmag System | -6/Factory | Hacked Assault Cannon | -6/Factory | Hacked Alien Tech Used ----------------- None Achievements -------------- Into The Breach Challenges ------------ None Game ------ Seed GravityNeutrinoCompactor Manual? 0 Play Time 01:10:47 Cumulative 238.7 hours Start 2026.09.23 @ 20:26:16 End 2026.09.24 @ 14:24:33 Sessions 3 Manual Loads 0 Difficulty Rogue Special Mode None Game No. 367 Rogue 364 Adventurer 3 Explorer 0 Win Type - Total 2 Types 2/0/0/0/0/0/0/0/0/0 Lore% 69 Gallery% 58 Achievement% 36 Wizard Run 0 Options --------- Layout 0 ASCII 0 Keyboard 0 Movement Mouse Keybinds 0 Fullscreen 2 Font 18/SmallcapsGlow Map View 76x50 Zoom Use 0% Tactical HUD 1 Map Filters NONE Filters NONE Steam 1 RUN: cf029aab-a54e-4381-a570-92ba44ee3cde